bitfinex-derivatives/quotes_BNBF0:USTF0_20250331
["timestamp","ask_amount","ask_price","bid_price","bid_amount"]
[1743396148085,5.84507796,602.58,601.82,0.33232527]
[1743396148285,4.52138377,602.57,601.82,0.33232527]
[1743396148483,4.52138377,602.56,601.82,0.33232527]
[1743396148684,0.82727521,602.55,601.82,0.33232527]
[1743396149283,3.7349679,602.55,601.82,0.33232527]
[1743396149487,1.86327521,602.54,601.82,0.33232527]
[1743396149688,5.55738377,602.54,601.82,0.33232527]
[1743396149888,0.82727521,602.53,601.82,0.33232527]
[1743396150286,3.283982,602.54,601.82,0.33232527]
[1743396150483,5.55711287,602.54,601.82,0.33232527]
[1743396150683,2.24784704,602.53,601.82,0.33232527]
[1743396150887,1.11238136,602.53,601.82,0.33232527]
[1743396151284,1.036,602.54,601.82,0.33232527]
[1743396161300,5.55198824,602.54,601.82,0.33232527]
[1743396161500,4.51598824,602.53,601.82,0.33232527]
[1743396161696,0.82629223,602.52,601.82,0.33232527]
[1743396162204,3.73398492,602.52,601.82,0.33232527]
[1743396162404,3.68969601,602.51,601.82,0.33232527]
[1743396162600,0.82629223,602.5,601.82,0.33232527]
[1743396163002,3.73398492,602.5,601.82,0.33232527]
[1743396163196,3.68969601,602.49,601.82,0.33232527]
[1743396163399,0.82629223,602.48,601.82,0.33232527]
[1743396163800,3.73398492,602.48,601.82,0.33232527]
[1743396164003,4.51598824,602.47,601.82,0.33232527]
[1743396164205,0.82629223,602.46,601.82,0.33232527]
[1743396164509,3.73398492,602.46,601.82,0.33232527]
[1743396164698,3.68969601,602.45,601.82,0.33232527]
[1743396164898,0.82629223,602.44,601.82,0.33232527]
[1743396165203,3.73398492,602.44,601.82,0.33232527]
[1743396165408,4.51616567,602.43,601.82,0.33232527]
[1743396165601,0.82646966,602.42,601.82,0.33232527]
[1743396165810,4.5168988,602.42,601.82,0.33232527]
[1743396166106,2.90769269,602.44,601.82,0.33232527]
[1743396166107,5.62928016,602.41,601.82,0.33232527]
[1743396166406,2.53177718,602.4,601.82,0.33232527]
[1743396166601,1.11238136,602.4,601.82,0.33232527]
[1743396167003,3.69042669,602.51,601.82,0.33232527]
[1743396167203,5.83932602,602.51,601.82,0.33232527]
[1743396167408,5.83932602,602.5,601.82,0.33232527]
[1743396167602,5.83932602,602.49,601.82,0.33232527]
[1743396167807,2.14889933,602.48,601.82,0.33232527]
[1743396168007,0.82649974,602.48,601.82,0.33232527]
[1743396168303,3.73231274,602.48,601.82,0.33232527]
[1743396168502,3.69042669,602.47,601.82,0.33232527]
[1743396168705,5.83932602,602.47,601.82,0.33232527]
[1743396168905,0.82649974,602.46,601.82,0.33232527]
[1743396169106,5.83929025,602.47,601.82,0.33232527]
[1743396169307,7.42246855,602.46,601.82,0.33232527]
[1743396169601,4.51665555,602.45,601.82,0.33232527]
[1743396169806,3.73226258,602.44,601.82,0.33232527]
[1743396170003,3.69020597,602.43,601.82,0.33232527]
[1743396170208,1.93883094,602.42,601.82,0.33232527]
[1743396170508,5.62903691,602.42,601.82,0.33232527]
[1743396170809,6.59601897,602.42,601.82,0.33232527]
[1743396171108,0.82645315,602.41,601.82,0.33232527]
[1743396171305,2.905813,602.42,601.82,0.33232527]
[1743396171503,1.41932594,602.51,601.82,0.33232527]
[1743396171704,1.41932594,602.5,601.82,0.33232527]
[1743396172008,8.74483215,602.51,601.82,0.33232527]
[1743396172210,5.83901915,602.5,601.82,0.33232527]
[1743396172410,6.47391064,602.49,601.82,0.33232527]
[1743396172709,5.83901915,602.48,601.82,0.33232527]
[1743396172909,2.1487717,602.47,601.82,0.33232527]
[1743396173110,3.73226615,602.47,601.82,0.33232527]
[1743396173408,3.69024745,602.46,601.82,0.33232527]
[1743396173606,0.8264624,602.45,601.82,0.33232527]
[1743396173806,1.93884376,602.45,601.82,0.33232527]
[1743396174108,3.3581697,602.45,601.82,0.33232527]
[1743396174712,2.24578834,602.45,601.82,0.33232527]
[1743396174911,2.82078346,602.53,601.82,0.33232527]
[1743396175204,1.11238136,602.44,601.82,0.33232527]
[1743396175404,5.44033348,602.53,601.82,0.33232527]
[1743396175604,4.51648572,602.52,601.82,0.33232527]
[1743396175808,0.82639622,602.51,601.82,0.33232527]
[1743396176203,2.90553516,602.51,601.82,0.33232527]
[1743396176607,5.17629872,602.51,601.82,0.33232527]
[1743396176812,4.51648572,602.5,601.82,0.33232527]
[1743396177013,4.51648572,602.49,601.82,0.33232527]
[1743396177310,5.15125732,602.48,601.82,0.33232527]
[1743396177506,2.24572216,602.47,601.82,0.33232527]
[1743396177905,3.64717968,602.53,601.82,0.33232527]
[1743396180005,3.35810352,602.53,601.82,0.33232527]
[1743396180209,1.93877758,602.53,601.82,0.33232527]
[1743396180513,1.11238136,602.53,601.82,0.33232527]
[1743396180712,1.036,602.54,601.82,0.33232527]
[1743396182315,2.24560931,602.55,601.82,0.33232527]
[1743396182515,3.56783409,602.56,601.82,0.33232527]
[1743396182716,2.24560931,602.56,601.82,0.33232527]
[1743396182912,1.41921882,602.56,601.82,0.33232527]
[1743396183312,2.53996712,602.56,601.82,0.33232527]
[1743396183518,1.1207483,602.56,601.82,0.33232527]
[1743396183710,5.83858421,602.61,601.82,0.33232527]
[1743396183911,5.83858421,602.6,601.82,0.33232527]
[1743396184116,5.83858421,602.59,601.82,0.33232527]
[1743396184316,5.83858421,602.58,601.82,0.33232527]
[1743396184618,5.83858421,602.57,601.82,0.33232527]
[1743396184819,3.56783409,602.56,601.82,0.33232527]
[1743396185013,1.41921882,602.55,601.82,0.33232527]
[1743396185215,0.82639049,602.56,601.82,0.33232527]
[1743396185216,1.41921882,602.54,601.82,0.33232527]
[1743396185512,2.53996712,602.53,601.82,0.33232527]
[1743396185713,1.1207483,602.53,601.82,0.33232527]
[1743396185918,4.68858239,602.53,601.82,0.33232527]
[1743396186119,7.07958421,602.52,601.82,0.33232527]
[1743396186320,5.83858421,602.51,601.82,0.33232527]
[1743396186619,5.83858421,602.5,601.82,0.33232527]
[1743396186818,2.14861527,602.49,601.82,0.33232527]
[1743396187019,0.82639049,602.49,601.82,0.33232527]
[1743396187424,3.74033608,602.49,601.82,0.33232527]
[1743396187725,4.51653136,602.48,601.82,0.33232527]
[1743396187923,0.82656242,602.47,601.82,0.33232527]
[1743396188316,3.74050801,602.47,601.82,0.33232527]
[1743396188521,3.68996894,602.46,601.82,0.33232527]
[1743396188722,0.82656242,602.45,601.82,0.33232527]
[1743396188917,1.94731072,602.45,601.82,0.33232527]
[1743396189122,5.63727966,602.45,601.82,0.33232527]
[1743396189323,2.24576581,602.44,601.82,0.33232527]
[1743396189519,1.1207483,602.44,601.82,0.33232527]
[1743396190125,0.82654699,602.5,601.82,0.33232527]
[1743396190419,1.94729529,602.5,601.82,0.33232527]
[1743396190624,3.26984307,602.5,601.82,0.33232527]
[1743396190826,6.96071298,602.5,601.82,0.33232527]
[1743396191123,7.43179944,602.49,601.82,0.33232527]
[1743396191324,4.5174169,602.48,601.82,0.33232527]
[1743396191524,0.82654699,602.47,601.82,0.33232527]
[1743396191727,3.74092953,602.47,601.82,0.33232527]
[1743396191922,3.69086991,602.46,601.82,0.33232527]
[1743396192120,0.82654699,602.45,601.82,0.33232527]
[1743396192525,3.74092953,602.45,601.82,0.33232527]
[1743396192726,3.69086991,602.44,601.82,0.33232527]
[1743396193026,0.82654699,602.43,601.82,0.33232527]
[1743396193431,1.94729529,602.43,601.82,0.33232527]
[1743396193627,3.36686064,602.43,601.82,0.33232527]
[1743396193827,1.41956535,602.42,601.82,0.33232527]
[1743396194026,1.1207483,602.43,601.82,0.33232527]
[1743396194224,6.48358236,602.5,601.82,0.33232527]
[1743396194427,4.51783852,602.49,601.82,0.33232527]
[1743396194628,0.82669415,602.48,601.82,0.33232527]
[1743396195129,3.74130974,602.48,601.82,0.33232527]
[1743396195328,3.69114437,602.47,601.82,0.33232527]
[1743396195527,0.82669415,602.46,601.82,0.33232527]
[1743396195922,1.94744245,602.46,601.82,0.33232527]
[1743396196125,5.63858682,602.46,601.82,0.33232527]
[1743396196330,0.82669415,602.45,601.82,0.33232527]
[1743396196523,4.51783852,602.45,601.82,0.33232527]
[1743396196725,0.82669415,602.44,601.82,0.33232527]
[1743396196927,4.51810821,602.44,601.82,0.33232527]
[1743396197130,2.24659852,602.43,601.82,0.33232527]
[1743396197329,2.24659852,602.44,601.82,0.33232527]
[1743396197724,4.69025768,602.51,601.82,0.33232527]
[1743396198033,3.27035331,602.5,601.82,0.33232527]
[1743396198230,1.41990437,602.49,601.82,0.33232527]
[1743396198432,2.24659852,602.49,601.82,0.33232527]
[1743396198631,3.74130974,602.49,601.82,0.33232527]
[1743396198827,3.69183206,602.48,601.82,0.33232527]
[1743396199033,0.82669415,602.47,601.82,0.33232527]
[1743396199630,3.74130974,602.47,601.82,0.33232527]
[1743396199828,3.69183206,602.46,601.82,0.33232527]
[1743396200031,0.82669415,602.45,601.82,0.33232527]
[1743396200227,1.94744245,602.45,601.82,0.33232527]
[1743396200430,5.63927451,602.45,601.82,0.33232527]
[1743396200636,3.74130974,602.44,601.82,0.33232527]
[1743396200943,1.41990437,602.43,601.82,0.33232527]
[1743396201129,2.24659852,602.43,601.82,0.33232527]
[1743396201936,3.36734682,602.51,601.82,0.33232527]
[1743396202630,4.69036528,602.51,601.82,0.33232527]
[1743396202837,2.14988402,602.5,601.82,0.33232527]
[1743396203036,4.81276411,602.5,601.82,0.33232527]
[1743396203333,5.8420269,602.49,601.82,0.33232527]
[1743396203536,5.8420297,602.48,601.82,0.33232527]
[1743396203838,5.8420307,602.47,601.82,0.33232527]
[1743396204037,4.51902227,602.46,601.82,0.33232527]
[1743396204337,4.51902227,602.45,601.82,0.33232527]
[1743396204533,0.82687789,602.44,601.82,0.33232527]
[1743396204837,3.74149841,602.44,601.82,0.33232527]
[1743396205037,3.69217201,602.43,601.82,0.33232527]
[1743396205234,1.1207483,602.42,601.82,0.33232527]
[1743396205438,1.94763192,602.42,601.82,0.33232527]
[1743396205635,1.1207483,602.42,601.82,0.33232527]
[1743396205940,5.06456817,602.49,601.82,0.33232527]
[1743396206138,3.69217201,602.48,601.82,0.33232527]
[1743396206338,1.42006616,602.47,601.82,0.33232527]
[1743396206543,3.36769808,602.47,601.82,0.33232527]
[1743396206849,1.42006616,602.46,601.82,0.33232527]
[1743396207143,5.84212459,602.46,601.82,0.33232527]
[1743396207343,2.14995258,602.45,601.82,0.33232527]
[1743396207544,0.82688362,602.45,601.82,0.33232527]
[1743396207746,3.74149921,602.45,601.82,0.33232527]
[1743396207939,3.69217201,602.44,601.82,0.33232527]
[1743396208142,5.84212459,602.44,601.82,0.33232527]
[1743396208343,3.27070088,602.43,601.82,0.33232527]
[1743396208544,6.96319492,602.43,601.82,0.33232527]
[1743396208746,7.43395136,602.42,601.82,0.33232527]
[1743396209040,4.51933577,602.41,601.82,0.33232527]
[1743396209238,3.74155987,602.4,601.82,0.33232527]
[1743396209445,3.69239149,602.39,601.82,0.33232527]
[1743396209745,0.82694428,602.38,601.82,0.33232527]
[1743396209945,3.74155987,602.38,601.82,0.33232527]
[1743396210243,3.69239149,602.37,601.82,0.33232527]
[1743396210439,0.82696705,602.36,601.82,0.33232527]
[1743396210639,1.1207483,602.36,601.82,0.33232527]
[1743396210838,4.81313979,602.36,601.82,0.33232527]
[1743396211041,1.42015057,602.35,601.82,0.33232527]
[1743396211239,1.1207483,602.35,601.82,0.33232527]
[1743396211842,5.84249053,602.48,601.82,0.33232527]
[1743396212042,3.57022853,602.47,601.82,0.33232527]
[1743396212243,2.24710363,602.47,601.82,0.33232527]
[1743396212444,1.42015057,602.46,601.82,0.33232527]
[1743396212644,1.42015057,602.45,601.82,0.33232527]
[1743396213044,5.84273184,602.46,601.82,0.33232527]
[1743396213243,8.75790481,602.45,601.82,0.33232527]
[1743396213444,5.84273184,602.44,601.82,0.33232527]
[1743396213641,5.06549224,602.43,601.82,0.33232527]
[1743396213840,3.69241257,602.42,601.82,0.33232527]
[1743396214040,5.84273184,602.42,601.82,0.33232527]
[1743396214245,3.27106757,602.41,601.82,0.33232527]
[1743396214443,6.96348014,602.41,601.82,0.33232527]
[1743396214643,5.84273184,602.4,601.82,0.33232527]
[1743396214841,5.84273184,602.39,601.82,0.33232527]
[1743396215044,0.82704587,602.38,601.82,0.33232527]
[1743396215243,5.84319735,602.39,601.82,0.33232527]
[1743396215442,2.15078478,602.38,601.82,0.33232527]
[1743396215648,3.74221884,602.38,601.82,0.33232527]
[1743396215846,3.69241257,602.37,601.82,0.33232527]
[1743396216045,4.51945844,602.36,601.82,0.33232527]
[1743396216241,4.51945844,602.35,601.82,0.33232527]
[1743396216442,4.51945844,602.34,601.82,0.33232527]
[1743396216647,0.82704587,602.33,601.82,0.33232527]
[1743396216847,3.74221884,602.33,601.82,0.33232527]
[1743396217048,3.69429817,602.32,601.82,0.33232527]
[1743396217345,0.82704587,602.31,601.82,0.33232527]
[1743396217747,3.74221884,602.31,601.82,0.33232527]
[1743396218042,3.69429817,602.3,601.82,0.33232527]
[1743396218246,3.69429817,602.29,601.82,0.33232527]
[1743396218444,4.52215181,602.28,601.82,0.33232527]
[1743396218644,2.54266278,602.27,601.82,0.33232527]
[1743396218842,1.1207483,602.27,601.82,0.33232527]
[1743396219643,2.24990317,602.42,601.82,0.33232527]
[1743396219842,1.1207483,602.43,601.82,0.33232527]
[1743396219843,2.24990317,602.41,601.82,0.33232527]
[1743396220048,2.24990317,602.4,601.82,0.33232527]
[1743396220244,2.24990317,602.39,601.82,0.33232527]
[1743396220442,1.42191448,602.38,601.46,0.28919147]
[1743396220642,1.42191448,602.37,601.47,0.33251866]
[1743396220846,1.42191448,602.36,601.47,0.33251866]
[1743396221042,1.42191448,602.35,601.47,0.33251866]
[1743396221245,1.42191448,602.34,601.47,0.33251866]
[1743396221442,1.42191448,602.33,601.47,0.33251866]
[1743396221748,1.42191448,602.32,601.47,0.33251866]
[1743396221949,1.42191448,602.31,601.47,0.33251866]
[1743396222149,1.42191448,602.3,601.47,0.33251866]
[1743396222350,1.42191448,602.29,601.47,0.33251866]
[1743396222543,1.1207483,602.3,601.47,0.33251866]
[1743396222544,1.42191448,602.28,601.47,0.33251866]
[1743396222744,3.37060811,602.3,601.47,0.33251866]
[1743396222948,2.24985981,602.29,601.47,0.33251866]
[1743396223144,0.82794533,602.29,601.47,0.33251866]
[1743396223342,1.42191448,602.29,601.47,0.33251866]
[1743396223545,4.52492298,602.29,601.47,0.33251866]
[1743396223748,0.82769031,602.28,601.47,0.33251866]
[1743396223946,4.52466796,602.28,601.47,0.33251866]
[1743396224150,3.74548952,602.27,601.47,0.33251866]
[1743396224350,3.69697765,602.26,601.47,0.33251866]
[1743396224643,0.82769031,602.25,601.47,0.33251866]
[1743396224847,1.94843861,602.25,601.47,0.33251866]
[1743396225045,5.64541626,602.25,601.47,0.33251866]
[1743396225247,0.82769031,602.24,601.47,0.33251866]
[1743396225451,3.74548952,602.24,601.47,0.33251866]
[1743396225749,1.42191448,602.23,601.47,0.33251866]
[1743396225950,2.24960479,602.23,601.47,0.33251866]
[1743396226149,2.24929126,602.23,601.47,0.33251866]
[1743396226746,1.42191448,602.33,601.47,0.33251866]
[1743396227050,0.289272,602.34,601.47,0.33251866]
[1743396227051,2.54266278,602.32,601.47,0.33251866]
[1743396227251,1.1207483,602.32,601.47,0.33251866]
[1743396227447,1.42191448,602.32,601.47,0.33251866]
[1743396227653,2.54266278,602.33,601.47,0.33251866]
[1743396227852,1.42191448,602.32,601.47,0.33251866]
[1743396228054,1.42191448,602.32,601.48,0.285675]
[1743396228248,5.84588865,602.43,601.49,0.3325076]
[1743396228448,9.06895298,602.42,601.5,0.285675]
[1743396228755,6.15115377,602.41,601.5,0.285675]
[1743396228948,6.15115377,602.4,601.5,0.285675]
[1743396229149,5.84588865,602.39,601.5,0.285675]
[1743396229350,5.84588865,602.38,601.5,0.285675]
[1743396229551,5.84588865,602.37,601.5,0.285675]
[1743396229752,3.5729027,602.36,601.5,0.285675]
[1743396230054,1.42191448,602.35,601.5,0.285675]
[1743396230353,2.54266278,602.35,601.5,0.285675]
[1743396230551,2.54266278,602.35,601.49,0.3325076]
[1743396230855,8.76368786,602.35,601.5,0.28568266]
[1743396231050,5.84588865,602.34,601.5,0.28568266]
[1743396231249,2.15098822,602.33,601.5,0.28568266]
[1743396231456,0.82737678,602.33,601.5,0.28568266]
[1743396231650,5.06617418,602.33,601.5,0.28568266]
[1743396231850,5.84588865,602.32,601.5,0.28568266]
[1743396232050,2.15098822,602.31,601.5,0.28568266]
[1743396232255,3.74256274,602.31,601.5,0.28568266]
[1743396232454,3.69490043,602.3,601.5,0.28568266]
[1743396232654,5.84588865,602.3,601.5,0.28568266]
[1743396232851,2.15098822,602.29,601.5,0.28568266]
[1743396233055,0.82737678,602.29,601.5,0.28568266]
[1743396233456,3.74256274,602.29,601.5,0.28568266]
[1743396233653,5.22890043,602.28,601.5,0.28568266]
[1743396233958,4.51693107,602.27,601.5,0.28568266]
[1743396234160,4.51693107,602.26,601.5,0.28568266]
[1743396234354,3.69039239,602.26,601.5,0.28568266]
[1743396234559,2.54060706,602.25,601.5,0.28568266]
[1743396234755,1.12122537,602.25,601.5,0.28568266]
[1743396235255,2.54060706,602.25,601.5,0.28568266]
[1743396235459,4.51673181,602.26,601.5,0.28568266]
[1743396235757,1.41938169,602.25,601.5,0.28568266]
[1743396235957,1.12122537,602.25,601.5,0.28568266]
[1743396236157,1.12122537,602.25,601.51,0.28568598]
[1743396236359,1.534,602.28,601.5,0.28568598]
[1743396236554,1.534,602.28,601.51,0.28568598]
[1743396236758,1.534,602.28,601.5,0.28568598]
[1743396236959,1.534,602.28,601.51,0.28568598]
[1743396237157,1.534,602.28,601.5,0.28568598]
[1743396237563,2.36044723,602.28,601.5,0.28568598]
[1743396237862,6.05058743,602.28,601.5,0.28568598]
[1743396238056,0.82644723,602.27,601.5,0.28568598]
[1743396238266,4.51658743,602.27,601.5,0.28568598]
[1743396238461,0.82634368,602.26,601.5,0.28568598]
[1743396238660,4.51648388,602.26,601.5,0.28568598]
[1743396238861,4.81136557,602.26,601.5,0.28568598]
[1743396239062,1.41938169,602.25,601.5,0.28568598]
[1743396239261,4.51622577,602.27,601.5,0.28568598]
[1743396239562,5.63745114,602.26,601.5,0.28568598]
[1743396239862,3.68984192,602.25,601.5,0.28568598]
[1743396240064,2.54060706,602.24,601.49,0.3325076]
[1743396240259,1.12122537,602.24,601.49,0.3325076]
[1743396240462,0.8263555,602.25,601.49,0.3325076]
[1743396240762,1.41938169,602.25,601.49,0.3325076]
[1743396240963,3.68987396,602.26,601.49,0.3325076]
[1743396241163,2.24573313,602.25,601.49,0.3325076]
[1743396241360,1.41938169,602.25,601.49,0.3325076]
[1743396241558,2.24573313,602.25,601.49,0.3325076]
[1743396241756,1.41938169,602.25,601.49,0.3325076]
[1743396242163,2.24569688,602.26,601.49,0.3325076]
[1743396242363,1.12122537,602.25,601.49,0.3325076]
[1743396242664,2.54022054,602.27,601.49,0.3325076]
[1743396242861,1.94753117,602.27,601.49,0.3325076]
[1743396243259,2.24530097,602.27,601.49,0.3325076]
[1743396243465,3.68935922,602.27,601.49,0.3325076]
[1743396243665,1.41899517,602.26,601.49,0.3325076]
[1743396243865,1.12122537,602.26,601.49,0.3325076]
[1743396244466,2.24530097,602.26,601.49,0.3325076]
[1743396244661,2.24530097,602.27,601.49,0.3325076]
[1743396244862,1.12122537,602.27,601.49,0.3325076]
[1743396245560,3.77930097,602.28,601.49,0.3325076]
[1743396245767,1.41899517,602.27,601.49,0.3325076]
[1743396246266,6.60351383,602.27,601.49,0.3325076]
[1743396246467,4.51557038,602.26,601.49,0.3325076]
[1743396246768,0.8263058,602.25,601.49,0.3325076]
[1743396246965,1.94753117,602.25,601.49,0.3325076]
[1743396247165,3.36652634,602.25,601.49,0.3325076]
[1743396247766,2.24530097,602.25,601.49,0.3325076]
[1743396247966,4.51552795,602.26,601.49,0.3325076]
[1743396248167,0.8263058,602.25,601.49,0.3325076]
[1743396248564,3.73983135,602.25,601.49,0.3325076]
[1743396248770,3.68915495,602.24,601.49,0.3325076]
[1743396248971,1.94689255,602.23,601.49,0.3325076]
[1743396249166,5.6360475,602.23,601.49,0.3325076]
[1743396249365,0.8263058,602.22,601.49,0.3325076]
[1743396249767,3.73983135,602.22,601.49,0.3325076]
[1743396249973,4.51533798,602.21,601.49,0.3325076]
[1743396250271,0.82626761,602.2,601.49,0.3325076]
[1743396250470,5.11379316,602.2,601.49,0.3325076]
[1743396250770,4.51533798,602.19,601.49,0.3325076]
[1743396250971,0.82626761,602.18,601.49,0.3325076]
[1743396251271,1.94685436,602.18,601.49,0.3325076]
[1743396251466,5.63565497,602.18,601.49,0.3325076]
[1743396251671,2.24514083,602.17,601.49,0.3325076]
[1743396251871,0.82626761,602.17,601.49,0.3325076]
[1743396252067,5.63549614,602.18,601.49,0.3325076]
[1743396252272,1.94685436,602.17,601.49,0.3325076]
[1743396252572,2.53929513,602.17,601.49,0.3325076]
[1743396252772,1.41870838,602.19,601.49,0.3325076]
[1743396252968,1.374,602.2,601.49,0.3325076]
[1743396253974,1.374,602.2,601.5,0.28566496]
[1743396254168,1.374,602.2,601.51,0.33249655]
[1743396264874,1.374,602.2,601.52,0.28551956]
[1743396265075,1.374,602.2,601.53,0.33248549]
[1743396265275,1.374,602.2,601.54,0.28551956]
[1743396265471,1.374,602.2,601.55,0.33247444]
[1743396265671,1.374,602.2,601.56,0.28551956]
[1743396265875,1.374,602.2,601.57,0.33246338]
[1743396266075,1.374,602.2,601.58,0.28551956]
[1743396266278,1.374,602.2,601.59,0.33245233]
[1743396268379,1.374,602.2,601.6,0.2853729]
[1743396268574,1.374,602.2,601.61,0.33244128]
[1743396278194,1.374,602.2,601.62,0.28545961]
[1743396278493,1.374,602.2,601.63,0.33243023]
[1743396278689,1.374,602.2,601.64,0.28545961]
[1743396278993,1.374,602.2,601.65,0.33241918]
[1743396279190,1.374,602.2,601.66,0.28545961]
[1743396280187,1.374,602.2,601.67,0.33240813]
[1743396280387,1.374,602.2,601.68,0.28545961]
[1743396281096,1.374,602.2,601.69,0.33239708]
[1743396281296,1.374,602.2,601.7,0.28545961]
[1743396282592,1.374,602.2,601.71,0.33238603]
[1743396302515,1.374,602.2,601.72,0.28559251]
[1743396303015,1.41796298,602.19,601.72,0.28559251]
[1743396303211,1.41796298,602.18,601.72,0.28559251]
[1743396303408,1.41796298,602.17,601.72,0.28559251]
[1743396303613,1.374,602.2,601.72,0.28559251]
[1743396303816,1.66031298,602.19,601.73,0.33237498]
[1743396304014,4.31684158,602.18,601.74,0.28559251]
[1743396304213,4.31684158,602.17,601.74,0.28559251]
[1743396304413,4.31684158,602.16,601.75,0.33236393]
[1743396304614,4.31684158,602.15,601.76,0.28559251]
[1743396304815,4.31684158,602.14,601.77,0.33235289]
[1743396305017,4.98096198,602.13,601.78,0.28559251]
[1743396305314,4.98096198,602.12,601.79,0.33234184]
[1743396305513,4.98096198,602.11,601.8,0.28559251]
[1743396305711,4.98096198,602.1,601.81,0.3323308]
[1743396305911,4.98096198,602.09,601.82,0.28559251]
[1743396306107,1.65284768,602.33,601.83,0.33231975]
[1743396306308,4.98080126,602.32,601.84,0.28558014]
[1743396306511,1.65284768,602.3,601.85,0.33230871]
[1743396306712,6.63364894,602.29,601.85,0.33230871]
[1743396306914,4.98080126,602.28,601.85,0.33230871]
[1743396307110,4.98080126,602.27,601.86,0.28563654]
[1743396307415,4.98080126,602.26,601.86,0.28563654]
[1743396307715,4.98080126,602.25,601.85,0.33230871]
[1743396307915,4.98080126,602.24,601.85,0.33230871]
[1743396308112,4.98080126,602.23,601.85,0.33230871]
[1743396308313,4.98080126,602.22,601.85,0.33230871]
[1743396308512,4.98080126,602.21,601.85,0.33230871]
[1743396308815,4.98080126,602.2,601.85,0.33230871]
[1743396309016,4.98080126,602.19,601.85,0.33230871]
[1743396309213,4.31669443,602.18,601.85,0.33230871]
[1743396309514,4.31669443,602.17,601.85,0.33230871]
[1743396309714,4.31669443,602.16,601.85,0.33230871]
[1743396309910,4.31669443,602.15,601.85,0.33230871]
[1743396310114,1.525,602.3,601.85,0.33230871]
[1743396310415,4.31688317,602.29,601.85,0.33230871]
[1743396310617,4.31688317,602.28,601.85,0.33230871]
[1743396310812,4.31688317,602.27,601.85,0.33230871]
[1743396311014,4.31688317,602.26,601.85,0.33230871]
[1743396311309,1.66033968,602.25,601.85,0.33230871]
[1743396311614,1.66033968,602.24,601.85,0.33230871]
[1743396311809,1.66033968,602.23,601.85,0.33230871]
[1743396312009,1.66033968,602.22,601.85,0.33230871]
[1743396312209,1.66033968,602.21,601.85,0.33230871]
[1743396312415,1.66033968,602.2,601.85,0.33230871]
[1743396312611,1.66033968,602.19,601.85,0.33230871]
[1743396312813,1.66033968,602.18,601.85,0.33230871]
[1743396313014,1.66033968,602.17,601.85,0.33230871]
[1743396313212,1.66037319,602.16,601.85,0.33230871]
[1743396313411,1.66037319,602.15,601.85,0.33230871]
[1743396313613,1.66040832,602.14,601.85,0.33230871]
[1743396313808,1.525,602.3,601.85,0.33230871]
[1743396314010,4.98116559,602.29,601.85,0.33230871]
[1743396314212,4.98116559,602.28,601.85,0.33230871]
[1743396314518,4.31701018,602.27,601.85,0.33230871]
[1743396314713,4.31701018,602.26,601.85,0.33230871]
[1743396314915,4.31701018,602.25,601.85,0.33230871]
[1743396315119,1.65284768,602.21,601.85,0.33230871]
[1743396315317,4.98116795,602.2,601.85,0.33230871]
[1743396315516,4.98116795,602.19,601.85,0.33230871]
[1743396315717,4.98116795,602.18,601.85,0.33230871]
[1743396315919,4.98116795,602.17,601.85,0.33230871]
[1743396316120,4.3170088,602.16,601.85,0.33230871]
[1743396316321,1.660388,602.15,601.85,0.33230871]
[1743396316526,1.660388,602.14,601.85,0.33230871]
[1743396316720,1.660388,602.13,601.85,0.33230871]
[1743396316924,1.660388,602.12,601.85,0.33230871]
[1743396317120,1.660388,602.11,601.85,0.33230871]
[1743396317323,1.660388,602.1,601.85,0.33230871]
[1743396317518,1.660388,602.09,601.85,0.33230871]
[1743396317724,0.66415543,602.24,601.85,0.33230871]
[1743396317926,4.31701032,602.23,601.85,0.33230871]
[1743396318217,1.525,602.3,601.85,0.33230871]
[1743396318218,4.31701032,602.22,601.85,0.33230871]
[1743396318425,4.31701032,602.21,601.85,0.33230871]
[1743396318625,4.31701032,602.2,601.85,0.33230871]
[1743396318925,4.31701032,602.19,601.85,0.33230871]
[1743396319117,4.31701032,602.18,601.85,0.33230871]
[1743396319322,4.31701032,602.17,601.85,0.33230871]
[1743396319528,4.31701032,602.16,601.85,0.33230871]
[1743396319723,1.66038858,602.15,601.85,0.33230871]
[1743396319921,1.66038858,602.14,601.85,0.33230871]
[1743396320122,1.66038858,602.13,601.85,0.33230871]
[1743396320319,2.65662174,602.28,601.85,0.33230871]
[1743396320524,4.31700854,602.27,601.85,0.33230871]
[1743396320721,4.31700854,602.26,601.85,0.33230871]
[1743396320923,1.6603868,602.25,601.85,0.33230871]
[1743396321127,1.525,602.3,601.85,0.33230871]
[1743396321128,1.6603868,602.24,601.85,0.33230871]
[1743396321328,1.525,602.3,601.85,0.33230871]
[1743396321527,1.66010865,602.29,601.86,0.28557484]
[1743396321728,1.66010865,602.28,601.87,0.33229767]
[1743396321930,1.66010865,602.27,601.88,0.28557484]
[1743396322125,1.525,602.3,601.87,0.33229767]
[1743396322431,1.525,602.3,601.89,0.33228663]
[1743396322631,1.525,602.3,601.9,0.2854568]
[1743396322835,1.525,602.3,601.91,0.33227558]
[1743396324131,1.525,602.3,601.92,0.28539151]